Cogmind - Beta 14 *** ADVENTURER MODE // 2025.01.01 @ 23:14:01 Player: x1b Result: Destroyed by G-34 Mercenary with Small Laser Performance ------------- Evolutions (1) 500 Regions Visited (3) 600 Robots Destroyed (9) 45 Value Destroyed (186) 186 Prototype IDs (0) 0 Alien Tech Used (0) 0 Bonus (0) 0 TOTAL SCORE: 1331 Bonus ------- None Cogmind --------- Core Integrity 0/400 Matter 250/300 Energy 81/125 System Corruption 0% Temperature Cool (6) Movement Treading (170) Location -9/Materials Parts ------- > --- POWER (1) -------- Light Ion Engine > --- PROPULSION (2) --- Armored Treads Armored Treads > --- UTILITY (3) ------ (None) > --- WEAPON (3) ------- (None) > --- INVENTORY (5) ---- Armored Treads Large Storage Unit Terrain Scanner Terrain Scan Processor Light Assault Rifle Peak State ------------ > --- POWER ------------ Light Ion Engine > --- PROPULSION ------- Light Treads Light Treads > --- UTILITY ---------- Small Storage Unit Large Storage Unit > --- WEAPON ----------- Medium Laser Light Assault Rifle > --- INVENTORY -------- Compact Wheel [Rating: 7] Favorites ----------- Power Light Ion Engine Engine Light Ion Engine Propulsion Light Treads Treads Light Treads Utility Large Storage Unit Device Structural Scanner Storage Large Storage Unit Weapon Light Assault Rifle Energy Gun Medium Laser Ballistic Gun Light Assault Rifle Build | -11 -10 -10 -9 ------- Run | Yrd Mat Min Mat Slots Evolved 2 | . . . 2 Power . | . . . . Propulsion . | . . . . Utility 1 | . . . 1 Weapon 1 | . . . 1 Parts Attached 14 | 6 1 2 5 Power 3 | 1 . 1 1 Engine 3 | 1 . 1 1 Core . | . . . . Reactor . | . . . . Propulsion 6 | 2 . . 4 Treads 6 | 2 . . 4 Leg . | . . . . Wheel . | . . . . Hover . | . . . . Flight . | . . . . Utility 3 | 1 1 1 . Device 1 | . . 1 . Storage 2 | 1 1 . . Processor . | . . . . Hackware . | . . . . Protection . | . . . . Artifact . | . . . . Weapon 2 | 2 . . . Energy Gun 1 | 1 . . . Energy Cannon . | . . . . Ballistic Gun 1 | 1 . . . Ballistic Cannon . | . . . . Launcher . | . . . . Special Weapon . | . . . . Impact Weapon . | . . . . Slashing Weapon . | . . . . Piercing Weapon . | . . . . Special Melee Weapon . | . . . . Unidentified Prototypes . | . . . . Parts Lost 6 | . . . 6 Power 1 | . . . 1 Propulsion 2 | . . . 2 Utility 1 | . . . 1 Weapon 2 | . . . 2 Highest Loss Streak 5 | . . . 5 To Critical Strikes . | . . . . Average Slot Usage (%) 77 | . 85 88 60 Engine 11 | . 14 14 6 Treads 24 | . 28 28 17 Device 4 | . . 2 9 Storage 12 | . 14 14 9 Energy Gun 11 | . 14 14 8 Ballistic Gun 12 | . 14 14 9 Peak Build Rating 7 | 6 7 7 7 Average Rating 5 | 4 6 6 5 On Entrance 4 | . 6 6 7 Naked Turns 14 | . . . 14 Heaviest Build 27 | 11 26 27 27 Greatest Support 40 | 40 40 40 40 Greatest Overweight (x) 6 | 1 . . 6 Average Overweight (x) . | . . . . Largest Inventory Capacity 15 | 8 15 15 15 Average Capacity 13 | 7 14 15 14 Most Carried 7 | 1 3 7 7 Average Carried 4 | . 2 4 6 Final Capacity 15 | 8 15 15 5 Final Carried 7 | 1 3 7 5 Class Distribution -------------------- 100% | Mutant Dominant Class ---------------- Mutant | -10/Materials Mutant | -10/Mines Mutant | -9/Materials Resources | -11 -10 -10 -9 ----------- Run | Yrd Mat Min Mat Matter Collected 327 | 207 . 93 27 Remotely . | . . . . Salvage Created 244 | . . 49 195 Parts 15 | . . 4 11 Haulers Intercepted . | . . . . Recyclers Shooed . | . . . . Parts Field Recycled . | . . . . Retrieved Matter . | . . . . Parts Self-Destructed . | . . . . Prevented . | . . . . Kills | -11 -10 -10 -9 ------- Run | Yrd Mat Min Mat Combat Hostiles Destroyed 11 | . . 5 6 Guns 11 | . . 5 6 Classes Destroyed 5 | . . 2 3 Swarmer 6 | . . 3 3 Grunt 1 | . . . 1 Duelist 1 | . . . 1 Sentry 1 | . . . 1 Assembled 2 | . . 2 . Best Kill Streak 3 | . . 3 3 Combat Bots Only 3 | . . 3 3 Max Kills in Single Turn 1 | . . 1 1 Gunslinging . | . . . . Exploded . | . . . . Melee . | . . . . Uniques/NPCs Destroyed . | . . . . Combat | -11 -10 -10 -9 -------- Run | Yrd Mat Min Mat Hostile Shots Fired 150 | . . 25 125 Missed 29 | . . 5 24 Damage Taken 1151 | . . 126 1025 Core 426 | . . 25 401 Absorbed by Shields . | . . . . Ignored by Resistances 345 | . . 40 305 Core Remaining (%) 95 | 100 . 90 . Volleys Fired 46 | . . 10 36 Largest 2 | . . 2 2 Hottest 70 | . . 70 70 Shots Fired 77 | . . 20 57 Gun 77 | . . 20 57 Cannon . | . . . . Launcher . | . . . . Special . | . . . . Kinetic 46 | . . 10 36 Thermal 31 | . . 10 21 Explosive . | . . . . Electromagnetic . | . . . . Robot Hit Streak 27 | . . 6 27 Robot Miss Streak 1 | . . 1 1 Penetration Max . | . . . . Secondary Targets 3 | . . 2 1 Max Gunslinging Chain 1 | . . 1 1 Shots Hit Robots 61 | . . 14 47 Core Hits 23 | . . 6 17 Critical Kills . | . . . . Critical Parts Destroyed . | . . . . Critical Strikes 1 | . . . 1 Burn 1 | . . . 1 Melee Attacks . | . . . . Impact . | . . . . Slashing . | . . . . Piercing . | . . . . Sneak Attacks . | . . . . Combat Hostiles . | . . . . Follow-up Attacks . | . . . . Damage Inflicted 601 | . . 158 443 Guns 580 | . . 145 435 Cannons . | . . . . Explosions . | . . . . Melee . | . . . . Ramming 21 | . . 13 8 Kinetic 293 | . . 44 249 Thermal 287 | . . 101 186 Explosive . | . . . . Electromagnetic . | . . . . Impact . | . . . . Slashing . | . . . . Piercing . | . . . . Highest Corruption . | . . . . Average Corruption . | . . . . Corruption Purged . | . . . . Corruption Blocked . | . . . . Overload Shots . | . . . . Overflow Damage . | . . . . Projectiles . | . . . . Explosions . | . . . . Melee . | . . . . Knockbacks . | . . . . Impact . | . . . . Kinetic . | . . . . Secondary . | . . . . Self-Inflicted Damage 3 | . . . 3 Shots . | . . . . Rammed 6 | . . 3 3 Targets Rammed 6 | . . 3 3 Kicked . | . . . . Crushed . | . . . . Highest Temperature 120 | . . 120 53 Average Temperature 31 | . . 51 20 Received Heat Transfer 509 | . . 20 489 Siege Activations . | . . . . Robots Corrupted . | . . . . Combat Hostiles . | . . . . Parts Fried . | . . . . Impact Corruptions . | . . . . Robots Melted . | . . . . Combat Hostiles . | . . . . Parts Melted 3 | . . 1 2 Heat Transferred 925 | . . 296 629 Parts Sabotaged . | . . . . Parts Stolen . | . . . . Parts Stripped . | . . . . Power Chain Reactions . | . . . . Alert | -11 -10 -10 -9 ------- Run | Yrd Mat Min Mat Peak Influence 165 | . . 70 165 Initial . | . . . . Average 54 | . . 59 83 Maximum Alert Level . | . . . . Low Security (%) 100 | 100 100 100 100 Level 1 . | . . . . Level 2 . | . . . . Level 3 . | . . . . Level 4 . | . . . . Level 5 . | . . . . High Security . | . . . . Max Security . | . . . . Squads Dispatched . | . . . . Investigation . | . . . . Extermination . | . . . . Reinforcement . | . . . . Assault . | . . . . Garrison . | . . . . Intercept . | . . . . Searches Triggered . | . . . . Construction Impeded . | . . . . Haulers Reinforced . | . . . . Active Scanning Responses . | . . . . Cargo Convoy Interrupts . | . . . . Stealth | -11 -10 -10 -9 --------- Run | Yrd Mat Min Mat Distress Signals 1 | . . . 1 Communications Jammed . | . . . . Distress Signals . | . . . . Times Spotted 24 | . 4 6 14 Peak Tracking Total 8 | . 3 3 8 Tactical Retreats 2 | . . 1 1 Traps | -11 -10 -10 -9 ------- Run | Yrd Mat Min Mat Traps Triggered . | . . . . Indirectly . | . . . . Trap Hack Attempts . | . . . . Triggered . | . . . . Disarmed . | . . . . Reprogrammed . | . . . . Reused . | . . . . Traps Extracted . | . . . . Installed . | . . . . Triggered . | . . . . Machines | -11 -10 -10 -9 ---------- Run | Yrd Mat Min Mat Machines Disabled . | . . . . Max in Single Turn . | . . . . Machines Repaired . | . . . . Machines Dismantled . | . . . . Machines Sabotaged . | . . . . Overloaded Fab Kills . | . . . . Hacking | -11 -10 -10 -9 --------- Run | Yrd Mat Min Mat Machines Accessed . | . . . . Terminals . | . . . . Fabricators . | . . . . Repair Stations . | . . . . Recycling Units . | . . . . Scanalyzers . | . . . . Garrison Access . | . . . . Total Hacks . | . . . . Successful . | . . . . Failed . | . . . . Catastrophic . | . . . . Database Lockouts . | . . . . Manual . | . . . . Terminals . | . . . . Fabricators . | . . . . Repair Stations . | . . . . Recycling Units . | . . . . Scanalyzers . | . . . . Garrison Access . | . . . . Terminal Hacks . | . . . . Fabricator Hacks . | . . . . Repair Station Hacks . | . . . . Recycling Unit Hacks . | . . . . Scanalyzer . | . . . . Garrison Access Hacks . | . . . . Unauthorized Hacks . | . . . . Terminals . | . . . . Fabricators . | . . . . Repair Stations . | . . . . Recycling Units . | . . . . Scanalyzers . | . . . . Garrison Access . | . . . . Data Cores Recovered . | . . . . Used . | . . . . Hacking Detections . | . . . . Full Trace Events . | . . . . Feedback Events . | . . . . Feedback Blocked . | . . . . Robot Schematics Acquired . | . . . . Robots Built . | . . . . Authchips . | . . . . Time . | . . . . Total Robot Build Rating . | . . . . Part Schematics Acquired . | . . . . Parts Built . | . . . . Authchips . | . . . . Time . | . . . . Total Part Build Rating . | . . . . Parts Repaired . | . . . . Time . | . . . . Parts Recycled . | . . . . Recycled Matter . | . . . . Retrieved Matter . | . . . . Retrieved Components . | . . . . Parts Scanalyzed . | . . . . Part Schematics Acquired . | . . . . Parts Damaged . | . . . . Bothacking | -11 -10 -10 -9 ------------ Run | Yrd Mat Min Mat Used RIF Installer . | . . . . Robots Hacked . | . . . . Non-combat . | . . . . Combat . | . . . . Robot Hacks Applied . | . . . . Relay Couplers Released . | . . . . Fabnet Peak Effective % . | . . . . Robots Rewired . | . . . . Allies Hacked . | . . . . Hacks Repelled . | . . . . Allies | -11 -10 -10 -9 -------- Run | Yrd Mat Min Mat Total Allies . | . . . . Largest Group . | . . . . Highest-Rated Group . | . . . . Highest-Rated Ally . | . . . . Total Orders . | . . . . Ally Attacks . | . . . . Total Damage . | . . . . Kills . | . . . . Allies Corrupted . | . . . . Allies Melted . | . . . . Intel | -11 -10 -10 -9 ------- Run | Yrd Mat Min Mat Robot Analysis Total . | . . . . Derelict Logs Recovered 1 | . . 1 . Drone Launches . | . . . . Drone Recoveries . | . . . . Exploration | -11 -10 -10 -9 ------------- Run | Yrd Mat Min Mat Turns Passed 976 | 97 112 454 313 Spaces Moved 529 | 57 68 259 145 Core 35 | 5 . . 30 Treads 494 | 52 68 259 115 Legs . | . . . . Wheels . | . . . . Hover . | . . . . Flight . | . . . . Fastest Speed 50 | 50 160 160 50 Average Speed 155 | 153 160 160 146 Slowest Speed 350 | 160 160 160 350 Overloaded Moves . | . . . . Propulsion Burnouts . | . . . . Robots Hopped . | . . . . Cave-ins Triggered . | . . . . Exploration Rate (%) 23 | 4 15 57 18 Regions Visited 3 Branch Regions 1 Pre-discovered Areas . | . . . . Known Exits Taken . | . . . . Unknown Exits Taken 3 | 1 1 1 . Scrap Searched . | . . . . Spaces Dug . | . . . . Terrain Destroyed . | . . . . Melee . | . . . . Projectile . | . . . . AOE . | . . . . Terrain Rammed . | . . . . Walls Destroyed . | . . . . Machines Disabled . | . . . . Actions | -11 -10 -10 -9 --------- Run | Yrd Mat Min Mat Total 602 | 63 71 278 190 Wait . | . . . . Move 526 | 56 67 258 145 Hop . | . . . . Pick Up 7 | 1 2 4 . Fast Attach 10 | 6 1 1 2 Attach 1 | . . . 1 Detach . | . . . . Swap 3 | . . 1 2 Drop 3 | . 1 1 1 Fire 46 | . . 10 36 Melee . | . . . . Ram 3 | . . . 3 Kick . | . . . . Crush 3 | . . 3 . Escape Stasis . | . . . . Rewire . | . . . . Trap . | . . . . Miscellaneous . | . . . . Route ------- -11/Scrapyard -10/Materials -10/Mines -9/Materials History --------- Turn | Location | Event 9 | -11/Scrapyard | Discovered new exit (range 16) 98 | -11/Scrapyard | Entered Materials 186 | -10/Materials | Discovered new exit (range 7) 210 | -10/Materials | Entered Mines 270 | -10/Mines | Assembled infested the area 275 | -10/Mines | Learned Materials stockpile data 305 | -10/Mines | Build established: Mutant 640 | -10/Mines | Discovered new exit (range 9) 664 | -10/Mines | Entered Materials 664 | -9/Materials | Evolved 2 slots: Utility x1, Weapon x1 934 | -9/Materials | Core integrity fell below 50% 948 | -9/Materials | Released all parts (1) 961 | -9/Materials | Core integrity fell below 20% 966 | -9/Materials | Lost 5 parts (2n1u2w) 977 | -9/Materials | Destroyed by G-34 Mercenary with Small Laser Last Messages --------------- Acquired 2 matter. Acquired 1 matter. Lgt. Treads destroyed. Acquired 1 matter. G-34 Mercenary destroyed. Acquired 1 matter. Lgt. Assault Rifle destroyed. Slammed into G-47 Trooper. M-13 Machinist repairs G-34 Mercenary. Slammed into M-13 Machinist. K-01 Serf collects debris. Structural Scanner destroyed. K-01 Serf collects debris. Released Lrg. Storage Unit. K-01 Serf collects debris. Slammed into A-02 Transporter. W-16 Scout distress signal alerts nearby ally. R-06 Scavenger collects Wheel. Acquired Arm. Treads. Dropped Arm. Treads. Map ----- +----------------------------------------------------+ | ?????????????????????????????????????????????????? | | ?????????????????????????????????????????????????? | | ?????????????????????????????????????????????????? | | ?????????????????????????????????????????????????? | | ?????????????????????????????????????????????????? | | ?????????????????????????????????????????????????? | | ?????????????????????????????????????????????????? | | ?????????????????????????????????????????????????? | | ?????????????????????????????????????????????????? | | ?????????????????????????????????????????????????? | | ?????????????????????????????????????????????????? | | ?????????????????????????????????????????????????? | | ?????????????????????????????????????????????????? | | ?????????????????????????????????????????????????? | | ?????????????????????????????????????????????????? | | ?????????????????????????????????????????????????? | | ?????????????????????????????????????????????????? | | ?????????????????????????????????????????????????? | | ?????????????????????????????????????????????????? | | ?????????????????????????????????????????????????? | | ?????????????????????????????????????????]???????? | | ?????????????????????????????????????????????????? | | ???????????????? ????????????????????????????????? | | ????????????????# ???????????????????????????????? | | ????????????????# ??########????????????????????? | | ????????????????# ??# =!@]]#????????????????????? | | ????????????????# ?# !!]]#????????????????????? | | ???????????????## ## #????????????????????? | | ??????????###+## #Y ###????????????????????? | | ??????????# #??????????????????????? | | ??????? #??????????????????????? | | ??????? #??????????????????????? | | ????????""" ## ## # ???????????????? | | ?????????""????######?# g##+#####/##????????????? | | ??????????????????????+ #????????????? | | ??????????????????????#gg ?????????? | | ?????????????????!????+ w % #????????????? | | ??????????????????????## ### #######??????## ? | | ???????????????????#####%### % #######??????## ? | | ?????????????????#######+### ## """""?????## ? | | ?????????????????# ## ## """"""????## ? | | ?????????????????# """ ## ## """""""???## ? | | ?????????????????# """"" # # """"""" #### ? | | ?????????????????# """"" #= !#%""""""" #### # | | ?????????????????# """"" /! %%=/% #### # | | ??????????????????= """ #! =#[ #### # | | ???????????????? # # # #### # | | ???????????????? # "T" ###+################ # | | ???????????????? # ## ####### # | | ???????????????? ########### ##???## # | +----------------------------------------------------+ Best States ------------- Heat Dissipation 28 Energy Generation 10 Energy Capacity 125 Matter Stores 300 Matter Capacity 300 Sight Range 16 Terrain Scan Density 10 Resistance: KI 20 Resistance: TH 20 Resistance: EX 20 Resistance: EM 20 Resistance: I 20 Resistance: S 20 Resistance: P 20 Evasion (%) 50 Recoil Reduction 2 Offensive Hacking 10 Item Schematics ----------------- None Robot Schematics ------------------ None Fabricated ------------ Nothing Alien Tech Used ----------------- None Achievements -------------- None Challenges ------------ None Game ------ Seed TacticalFusionProjector Manual? 0 Play Time 00:06:49 Cumulative 4.7 hours Start 2025.01.01 @ 23:08:50 End 2025.01.01 @ 23:14:01 Sessions 1 Manual Loads 0 Difficulty Adventurer Special Mode None Game No. 19 Rogue 12 Adventurer 7 Explorer 0 Win Type - Total 0 Types 0/0/0/0/0/0/0/0/0 Lore% 2 Gallery% 9 Achievement% 10 Wizard Run 0 Options --------- Layout 1 ASCII 0 Keyboard 0 Movement Arrows Keybinds 0 Fullscreen 1 Font 24/Smallcaps Map View 50x35 Zoom Use 0% Tactical HUD 0 Map Filters NONE Filters NONE Steam 1 RUN: 783b6e0e-6d25-4f8a-8fad-c6ec5a70d406